Workbook

Sheet Wybór języka

Sheet PL
A1: P&L (Asseco Poland S.A.) | B1: P&L (Asseco Poland S.A.) | C1: Q1 2018 | D1: Q2 2018 | E1: Q3 2018 | F1: Q4 2018 | G1: Q1 2019 | H1: Q2 2019 | I1: Q3 2019 | J1: Q4 2019 | K1: Q1 2020 | L1: Q2 2020 | M1: Q3 2020 | N1: Q4 2020
C3: mln PLN | D3: mln PLN | E3: mln PLN | F3: mln PLN | G3: mln PLN | H3: mln PLN | I3: mln PLN | J3: mln PLN | K3: mln PLN | L3: mln PLN | M3: mln PLN | N3: mln PLN
A5: Przychody ze sprzedaży | B5: Sales revenues | C5: 205.4 | D5: 225.4 | E5: 211 | F5: 251.5 | G5: 195.1 | H5: 210 | I5: 191.7 | J5: 208.7 | K5: 203.8 | L5: 226.6 | M5: 261.3 | N5: 305.2
A6: Koszt własny sprzedaży | B6: Cost of sales | C6: -130.3 | D6: -149.9 | E6: -134.4 | F6: -170.6 | G6: -135.6 | H6: -146.3 | I6: -133.8 | J6: -156.1 | K6: -142.4 | L6: -160.5 | M6: -187 | N6: -222.8
A8: Zysk brutto ze sprzedaży | B8: Gross profit on sales | C8: =SUM(C5:C6) -> 75.1 | D8: =SUM(D5:D6) -> 75.5 | E8: =SUM(E5:E6) -> 76.6 | F8: =SUM(F5:F6) -> 80.9 | G8: =SUM(G5:G6) -> 59.5 | H8: =SUM(H5:H6) -> 63.7 | I8: 57.9 | J8: 52.6 | K8: 61.4 | L8: 66.1 | M8: 74.3 | N8: 82.4
A10: Koszty sprzedaży | B10: Selling costs | C10: -10.8 | D10: -11.4 | E10: -10.7 | F10: -13.5 | G10: -10.9 | H10: -10.5 | I10: -10.7 | J10: -14.2 | K10: -9.8 | L10: -10.8 | M10: -9.6 | N10: -10.8
A11: Koszty ogólnego zarządu | B11: General administrative expenses | C11: -18.5 | D11: -21 | E11: -18.9 | F11: -23.6 | G11: -18.9 | H11: -21.4 | I11: -19.8 | J11: -18.9 | K11: -20.9 | L11: -21.7 | M11: -21.7 | N11: -23.3
A13: Zysk netto ze sprzedaży | B13: Net profit on sales | C13: =SUM(C8,C10:C11) -> 45.8 | D13: =SUM(D8,D10:D11) -> 43.1 | E13: =SUM(E8,E10:E11) -> 47 | F13: =SUM(F8,F10:F11) -> 43.8 | G13: =SUM(G8,G10:G11) -> 29.7 | H13: =SUM(H8,H10:H11) -> 31.8 | I13: 27.4 | J13: 19.5 | K13: 30.7 | L13: 33.6 | M13: 43 | N13: 48.3
A15: Pozostałe przychody operacyjne | B15: Other operating income | C15: 0.8 | D15: 0.8 | E15: 0.8 | F15: 1 | G15: 0.2 | H15: 0.3 | I15: 0.7 | J15: 2.7 | K15: 1.4 | L15: 0.8 | M15: 1 | N15: 9.4
A16: Pozostałe koszty operacyjne | B16: Other operating expenses | C16: -0.2 | D16: -0.8 | E16: -0.2 | F16: -0.2 | G16: -0.8 | H16: -0.2 | I16: 0 | J16: -2 | K16: -0.8 | L16: -0.3 | M16: 0 | N16: -9
A18: Zysk z działalności operacyjnej | B18: Operating profit | C18: =SUM(C13,C15:C16) -> 46.4 | D18: =SUM(D13,D15:D16) -> 43.1 | E18: =SUM(E13,E15:E16) -> 47.6 | F18: =SUM(F13,F15:F16) -> 44.6 | G18: =SUM(G13,G15:G16) -> 29.1 | H18: =SUM(H13,H15:H16) -> 31.9 | I18: 28.1 | J18: 20.2 | K18: 31.3 | L18: 34.1 | M18: 44 | N18: 48.7
A20: Działalność finansowa | B20: Financial activity | C20: 12 | D20: 7.3 | E20: 3.3 | F20: 6.4 | G20: 80.1 | H20: 21.9 | I20: 6 | J20: 7.5 | K20: 103.2 | L20: 24 | M20: 7.8 | N20: -1.4
A22: Zysk brutto | B22: Pre-tax profit | C22: =SUM(C18,C20) -> 58.4 | D22: =SUM(D18,D20) -> 50.4 | E22: =SUM(E18,E20) -> 50.9 | F22: =SUM(F18,F20) -> 51 | G22: =SUM(G18,G20) -> 109.2 | H22: =SUM(H18,H20) -> 53.8 | I22: 34.1 | J22: 27.7 | K22: 134.5 | L22: 58.1 | M22: 51.8 | N22: 47.3
A24: Podatek dochodowy | B24: Corporate income tax | C24: -13.1 | D24: -10.3 | E24: -10.7 | F24: -10.1 | G24: -5.8 | H24: -4.8 | I24: -3.5 | J24: -3.9 | K24: -5.6 | L24: -9.4 | M24: -10.6 | N24: -0.5
A26: Zysk netto z działalności kontynuawanej za okres sprawozdawczy | B26: Net profit for the reporting period from continued operations | C26: =SUM(C22,C24) -> 45.3 | D26: =SUM(D22,D24) -> 40.1 | E26: =SUM(E22,E24) -> 40.2 | F26: =SUM(F22,F24) -> 40.9 | G26: =SUM(G22,G24) -> 103.4 | H26: =SUM(H22,H24) -> 49 | I26: 30.6 | J26: 23.8 | K26: 128.9 | L26: 48.7 | M26: 41.2 | N26: 46.8
A28: Zysk netto z działalności zaniechanej za okres sprawozdawczy | B28: Net profit for the reporting period from discontinued operations | C28: 0 | D28: 0 | E28: 0 | F28: 0 | G28: 0 | H28: 0 | I28: 0 | J28: 0 | K28: 0 | L28: 0 | M28: 0 | N28: 0
A30: Zysk netto za okres sprawozdawczy | B30: Net profit for the reporting period | C30: =SUM(C26,C28) -> 45.3 | D30: =SUM(D26,D28) -> 40.1 | E30: =SUM(E26,E28) -> 40.2 | F30: =SUM(F26,F28) -> 40.9 | G30: =SUM(G26,G28) -> 103.4 | H30: =SUM(H26,H28) -> 49 | I30: 30.6 | J30: 23.8 | K30: =SUM(K26,K28) -> 128.9 | L30: 48.7 | M30: 41.2 | N30: 46.8
A32: Zysk netto przypadający na jedną akcję (w złotych) z działalności kontynuowanej | B32: Earnings per share (in PLN) from continued operations:
A33: EPS | B33: EPS | C33: 0.55 | D33: 0.48 | E33: 0.48 | F33: 0.5 | G33: 1.25 | H33: 0.59 | I33: 0.37 | J33: 0.28 | K33: 1.55 | L33: 0.59 | M33: 0.5 | N33: 0.56
A34: EPS rozwodniony | B34: Diluted EPS | C34: 0.55 | D34: 0.48 | E34: 0.48 | F34: 0.5 | G34: 1.25 | H34: 0.59 | I34: 0.37 | J34: 0.28 | K34: 1.55 | L34: 0.59 | M34: 0.5 | N34: 0.56

Sheet BS
A1: BILANS ASSECO POLAND S.A. | B1: STATEMENT OF FINANCIAL POSITION OF ASSECO POLAND S.A. | C1: Q1 2018 | D1: Q2 2018 | E1: Q3 2018 | F1: Q4 2018 | G1: Q1 2019 | H1: Q2 2019 | I1: Q3 2019 | J1: Q4 2019 | K1: Q1 2020 | L1: Q2 2020 | M1: Q3 2020 | N1: Q4 2020
C3: mln PLN | D3: mln PLN | E3: mln PLN | F3: mln PLN | G3: mln PLN | H3: mln PLN | I3: mln PLN | J3: mln PLN | K3: mln PLN | L3: mln PLN | M3: mln PLN | N3: mln PLN
A7: Aktywa trwałe | B7: Non-current assets
A8: Rzeczowe aktywa trwałe | B8: Property, plant and equipment | C8: 316.7 | D8: 314.9 | E8: 312.2 | F8: 310.2 | G8: 268.1 | H8: 271.2 | I8: 275.1 | J8: 284.6 | K8: 284.4 | L8: 291.7 | M8: 302.5 | N8: 310.5
A9: Wartości niematerialne | B9: Intangible assets | C9: 2213.4 | D9: 2210.5 | E9: 2208.5 | F9: 2213.2 | G9: 2218.2 | H9: 2215.3 | I9: 2216.6 | J9: 2216.1 | K9: 2215.6 | L9: 2214.6 | M9: 2218.4 | N9: 2208.8
A10: w tym wartość firmy z połączenia | B10: of which goodwill from mergers | C10: 1932.5 | D10: 1932.5 | E10: 1932.5 | F10: 1932.5 | G10: 1932.5 | H10: 1932.5 | I10: 1932.5 | J10: 1932.5 | K10: 1932.5 | L10: 1932.5 | M10: 1936.9 | N10: 1936.9
A11: Aktywa z tytułu prawa do użytkowania | B11: Right-to-use assets | C11: 0 | D11: 0 | E11: 0 | F11: 0 | G11: 99.9 | H11: 95.7 | I11: 90.7 | J11: 87 | K11: 83.6 | L11: 90.1 | M11: 86.3 | N11: 90.2
A12: Nieruchomości inwestycyjne | B12: Investment property | C12: 0.4 | D12: 0.4 | E12: 0.4 | F12: 0.4 | G12: 0.4 | H12: 0.4 | I12: 0.4 | J12: 0.4 | K12: 0.4 | L12: 0.4 | M12: 0.3 | N12: 0.3
A13: Inw. w jedn. zależnych i stowarzyszonych | B13: Inv. in subsidiaries and associates | C13: 2052.5 | D13: 2055 | E13: 2056.1 | F13: 2052.1 | G13: 2069.7 | H13: 2073.2 | I13: 2073.9 | J13: 2073.9 | K13: 2081.5 | L13: 2083 | M13: 2069.7 | N13: 2069.2
A14: Należności długoterminowe | B14: Long-term receivables | C14: 88.3 | D14: 85.5 | E14: 81.2 | F14: 82.7 | G14: 82 | H14: 76.9 | I14: 78.9 | J14: 69.6 | K14: 72.5 | L14: 55 | M14: 44.1 | N14: 57
A15: Długoterminowe aktywa finansowe | B15: Long-term financial assets | C15: 37.1 | D15: 13.5 | E15: 14 | F15: 46.4 | G15: 31.4 | H15: 32 | I15: 31.4 | J15: 28.3 | K15: 25.6 | L15: 26 | M15: 26 | N15: 25.9
A16: Długoterm. rozl. międzyokresowe | B16: Long-term prepayments and accr. inc. | C16: 1 | D16: 4.3 | E16: 5.9 | F16: 6 | G16: 5.6 | H16: 4.9 | I16: 9.6 | J16: 14.1 | K16: 13.3 | L16: 12.3 | M16: 15.8 | N16: 40.9
C17: =SUM(C8:C9,C11:C16) -> 4709.4 | D17: =SUM(D8:D9,D11:D16) -> 4684.1 | E17: =SUM(E8:E9,E11:E16) -> 4678.3 | F17: =SUM(F8:F9,F11:F16) -> 4711 | G17: =SUM(G8:G9,G11:G16) -> 4775.3 | H17: 4769.6 | I17: 4776.6 | J17: 4774 | K17: 4776.9 | L17: 4773.1 | M17: 4763.1 | N17: 4802.8
A18: Aktywa obrotowe | B18: Current assets
A19: Zapasy | B19: Inventories | C19: 2.8 | D19: 4.7 | E19: 4.7 | F19: 2.6 | G19: 4.3 | H19: 2.6 | I19: 3.3 | J19: 8.1 | K19: 9 | L19: 1 | M19: 2.5 | N19: 1.4
A20: Należności z tytułu dostaw i usług | B20: Trade receivables | C20: 373.6 | D20: 187.3 | E20: 160.4 | F20: 173.7 | G20: 138 | H20: 203.1 | I20: 152.8 | J20: 170.9 | K20: 139.9 | L20: 131.8 | M20: 186.2 | N20: 220.6
A21: Aktywa z tytułu umów z klientami | B21: Contract assets | C21: 0 | D21: 164.9 | E21: 151.7 | F21: 122.4 | G21: 144.9 | H21: 119.4 | I21: 99.2 | J21: 50.1 | K21: 76.9 | L21: 100.3 | M21: 115.5 | N21: 112
A22: Należności z tyt. podatku dochodowego od osób prawnych | B22: Corporate income tax receivable | C22: 28.3 | D22: 0.1 | E22: 0.1 | F22: 0 | G22: 0 | H22: 0.9 | I22: 0.2 | J22: 0 | K22: 0 | L22: 4 | M22: 1.9 | N22: 2.3
A23: Pozostałe należności | B23: Other receivables | C23: 25.3 | D23: 24.2 | E23: 27.3 | F23: 17.4 | G23: 89.3 | H23: 22.7 | I23: 22.1 | J23: =21.1+1.4 -> 22.5 | K23: 119.6 | L23: 20.1 | M23: 28.4 | N23: 24.1
A24: Pozostałe aktywa niefinansowe | B24: Other non-financial assets | C24: 1.8 | D24: 1.6 | E24: 3.8 | F24: 1.6 | G24: 1.8 | H24: 0.9 | I24: 2.7 | J24: 0.9 | K24: 2.2 | L24: 1.6 | M24: 0.9 | N24: 1
A25: Aktywa finansowe | B25: Financial assets | C25: 5.7 | D25: 23.3 | E25: 23.8 | F25: 1.4 | G25: 1.4 | H25: 1.6 | I25: 0.8 | J25: 1.7 | K25: 1 | L25: 1.6 | M25: 1.4 | N25: 1.2
A26: Rozliczenia międzyokresowe | B26: Prepayments and accrued income | C26: 14.7 | D26: 13.2 | E26: 16 | F26: 16.1 | G26: 24 | H26: 22.1 | I26: 29.3 | J26: 38.8 | K26: 43.7 | L26: 48.6 | M26: 48.6 | N26: 39.9
A27: Środki pieniężne i depozyty krótkoterminowe | B27: Cash and short-term deposits | C27: 298.4 | D27: 147.8 | E27: 184.5 | F27: 264.7 | G27: 247.8 | H27: 35.1 | I27: 94.9 | J27: 168.7 | K27: 179.7 | L27: 79.4 | M27: 94 | N27: 164.8
A28: Aktywa przeznaczone do sprzedaży | B28: Assets held for sale | C28: 3.9 | D28: 3.9 | E28: 6 | F28: 6 | G28: 3.5 | H28: 1.9 | I28: 0 | J28: 0 | K28: 0 | L28: 0 | M28: 0 | N28: 0
C29: =SUM(C19:C28) -> 754.5 | D29: =SUM(D19:D28) -> 571 | E29: =SUM(E19:E28) -> 578.3 | F29: =SUM(F19:F28) -> 605.9 | G29: =SUM(G19:G28) -> 655 | H29: =SUM(H19:H28) -> 410.3 | I29: 405.3 | J29: =SUM(J19:J28) -> 461.7 | K29: =SUM(K19:K28) -> 572 | L29: =SUM(L19:L28) -> 388.4 | M29: =SUM(M19:M28) -> 479.4 | N29: =SUM(N19:N28) -> 567.3
A32: SUMA AKTYWÓW | B32: TOTAL ASSETS | C32: =SUM(C17,C29) -> 5463.9 | D32: =SUM(D17,D29) -> 5255.1 | E32: =SUM(E17,E29) -> 5256.6 | F32: =SUM(F17,F29) -> 5316.9 | G32: =SUM(G17,G29) -> 5430.3 | H32: =SUM(H17,H29) -> 5179.9 | I32: 5181.9 | J32: =SUM(J17,J29) -> 5235.7 | K32: =SUM(K17,K29) -> 5348.9 | L32: =SUM(L17,L29) -> 5161.5 | M32: =SUM(M17,M29) -> 5242.5 | N32: =SUM(N17,N29) -> 5370.1
A34: KAPITAŁ WŁASNY OGÓŁEM | B34: TOTAL EQUITY | C34: 5078.9 | D34: 4869 | E34: 4909 | F34: 4949.8 | G34: 5046 | H34: 4838.5 | I34: 4869.1 | J34: 4892.4 | K34: 5021.4 | L34: 4820.2 | M34: 4856 | N34: 4902.2
A36: Zobowiązania długoterminowe | B36: Non-current liabilities
A37: Długoterminowe oprocentowane kredyty bankowe, pożyczki, dłużne papiery wartościowe | B37: Long-term interest-bearing bank loans, borrowings and debt securities | C37: 59.9 | D37: 46.4 | E37: 42.5 | F37: 38.8 | G37: 0 | H37: 0 | I37: 0 | J37: 0 | K37: 0 | L37: 0 | M37: 0 | N37: 0
A38: Dł. zob. z tyt. leasingu finansowego | B38: Long-term finance lease liabilities | C38: 38.8 | D38: 34.2 | E38: 27.7 | F38: 21.8 | G38: 76.1 | H38: 67.6 | I38: 59.1 | J38: 55 | K38: 54.2 | L38: 61.7 | M38: 59.7 | N38: 63.2
A39: Długoterminowe zobowiązania finansowe | B39: Long-term financial liabilities | C39: 0 | D39: 1.2 | E39: 0 | F39: 2.2 | G39: 2.7 | H39: 2.8 | I39: 7.4 | J39: 6 | K39: 8.3 | L39: 5.4 | M39: 2.9 | N39: 3.8
A40: Rezerwa z tytułu odr. podatku doch. | B40: Deferred income tax liabilities | C40: 25 | D40: 28 | E40: 28.2 | F40: 26.3 | G40: 29.5 | H40: 28.4 | I40: 27.3 | J40: 22.3 | K40: 25.2 | L40: 28.3 | M40: 28.8 | N40: 21.8
A41: Długoterminowe zobowiązania z tytułu umów z klientami | B41: Long-term contract liabilities | C41: 0 | D41: 4.8 | E41: 6 | F41: 8.7 | G41: 8.3 | H41: 8.3 | I41: 12.2 | J41: 17.5 | K41: 11.8 | L41: 19.1 | M41: 40.9 | N41: 46.9
A42: Długoterminowe pozostałe zobowiązania | B42: Other long-term liabilities | C42: 0.3 | D42: 0.1 | E42: 0.5 | F42: 0.5 | G42: 0.3 | H42: 0.3 | I42: 0.1 | J42: 0.1 | K42: 0.1 | L42: 0.2 | M42: 0.1 | N42: 0.3
A43: Długoterminowe rezerwy | B43: Long-term provisions | C43: 17 | D43: 14.7 | E43: 12.5 | F43: 9.7 | G43: 9 | H43: 11.3 | I43: 6.2 | J43: 3.6 | K43: 3.1 | L43: 3.6 | M43: 5.3 | N43: 3.8
A44: Długoterminowe rozliczenia międzyokresowe przychodów | B44: Long-term deferred income | C44: 37.1 | D44: 31.5 | E44: 31.9 | F44: 32.4 | G44: 33 | H44: 33.1 | I44: 33.1 | J44: 32.7 | K44: 41.8 | L44: 45.1 | M44: 49.6 | N44: 51.8
C45: =SUM(C37:C44) -> 178.1 | D45: =SUM(D37:D44) -> 160.9 | E45: =SUM(E37:E44) -> 149.3 | F45: =SUM(F37:F44) -> 140.4 | G45: =SUM(G37:G44) -> 158.9 | H45: =SUM(H37:H44) -> 151.8 | I45: 145.4 | J45: 137.2 | K45: 144.5 | L45: 163.4 | M45: =SUM(M37:M44) -> 187.3 | N45: =SUM(N37:N44) -> 191.6
A46: Zobowiązania krótkoterminowe | B46: Current liabilities
A47: Oprocentowane kredyty bankowe, pożyczki, dłużne papiery wartościowe | B47: Interest-bearing bank loans, borrowings and debt securities | C47: 25.2 | D47: 15.4 | E47: 15.3 | F47: 15.2 | G47: 25.9 | H47: 1.1 | I47: 0.5 | J47: 0 | K47: 0 | L47: 0 | M47: 0 | N47: 0
A48: Zob. z tyt. leasingu finansowego | B48: Finance lease liabilities | C48: 22 | D48: 23.1 | E48: 23 | F48: 23.6 | G48: 31.9 | H48: 31.8 | I48: 32.4 | J48: 27.6 | K48: 22.5 | L48: 16.2 | M48: 9.9 | N48: 8.8
A49: Inne zobowiązania finansowe | B49: Other financial liabilities | C49: 0.1 | D49: 1.8 | E49: 1.1 | F49: 1 | G49: 2.2 | H49: 2.3 | I49: 0.9 | J49: 0.7 | K49: 1.5 | L49: 2.3 | M49: 2.3 | N49: 2.3
A50: Zobowiązania z tytułu dostaw i usług | B50: Trade payables | C50: 70.4 | D50: 85.9 | E50: 66 | F50: 75.8 | G50: 66.9 | H50: 63.2 | I50: 50.3 | J50: 70.4 | K50: 51.7 | L50: 46 | M50: 65 | N50: 84.1
A51: Krótkoterminowe zobowiązania z tytułu umów z klientami | B51: Current contract liabilities | C51: 0 | D51: 24.7 | E51: 20 | F51: 26.5 | G51: 23.5 | H51: 27.6 | I51: 26.2 | J51: 34.9 | K51: 48.1 | L51: 46.2 | M51: 57.8 | N51: 98.9
A52: Zobowiązania budżetowe | B52: Liabilities to the state and local budgets | C52: 17.5 | D52: 14.6 | E52: 13 | F52: 15.6 | G52: 12.7 | H52: 20.4 | I52: 11 | J52: 13.2 | K52: 16.4 | L52: 13.6 | M52: 13.7 | N52: 28.6
A53: Zobowiązania z tytułu podatku dochodowego od osób prawych | B53: Corporate income tax payable | C53: 0 | D53: 4.1 | E53: 8.4 | F53: 15.1 | G53: 10.3 | H53: 0 | I53: 0 | J53: 4.6 | K53: 0.6 | L53: 0 | M53: 0 | N53: 0
A54: Pozostałe zobowiązania | B54: Other liabilities | C54: 9.9 | D54: 11.2 | E54: 9.7 | F54: 7 | G54: 2.9 | H54: 6.4 | I54: 8.5 | J54: 11.5 | K54: 2.6 | L54: 2.6 | M54: 2.9 | N54: 6.7
A55: Rezerwy | B55: Provisions | C55: 10.7 | D55: 10.5 | E55: 10.4 | F55: 11.8 | G55: 10.3 | H55: 5.8 | I55: 9.2 | J55: 8.7 | K55: 8.6 | L55: 8.4 | M55: 6 | N55: 5.7
A56: Rozliczenia międzyokresowe kosztów | B56: Deferred income | C56: 28 | D56: 32.5 | E56: 30.1 | F56: 33.8 | G56: 37.6 | H56: 29.8 | I56: 27.2 | J56: 33 | K56: 29.5 | L56: 41 | M56: 40.1 | N56: 39.7
A57: Rozliczenia międzyokresowe przychodów | B57: Accruals | C57: 23.1 | D57: 1.4 | E57: 1.3 | F57: 1.3 | G57: 1.2 | H57: 1.2 | I57: 1.2 | J57: 1.5 | K57: 1.5 | L57: 1.6 | M57: 1.5 | N57: 1.5
C58: =SUM(C47:C57) -> 206.9 | D58: =SUM(D47:D57) -> 225.2 | E58: =SUM(E47:E57) -> 198.3 | F58: =SUM(F47:F57) -> 226.7 | G58: =SUM(G47:G57) -> 225.4 | H58: =SUM(H47:H57) -> 189.6 | I58: 167.4 | J58: 206.1 | K58: 183 | L58: 177.9 | M58: 199.2 | N58: =SUM(N47:N57) -> 276.3
A60: SUMA ZOBOWIĄZAŃ | B60: TOTAL LIABILITIES | C60: =SUM(C45,C58) -> 385 | D60: =SUM(D45,D58) -> 386.1 | E60: =SUM(E45,E58) -> 347.6 | F60: =SUM(F45,F58) -> 367.1 | G60: =SUM(G45,G58) -> 384.3 | H60: =SUM(H45,H58) -> 341.4 | I60: 312.8 | J60: 343.3 | K60: 327.5 | L60: =SUM(L45,L58) -> 341.3 | M60: 386.5 | N60: =SUM(N45,N58) -> 467.9
A62: SUMA PASYWÓW | B62: TOTAL EQUITY AND LIABILITIES | C62: =SUM(C34,C60) -> 5463.9 | D62: =SUM(D34,D60) -> 5255.1 | E62: =SUM(E34,E60) -> 5256.6 | F62: =SUM(F34,F60) -> 5316.9 | G62: =SUM(G34,G60) -> 5430.3 | H62: =SUM(H34,H60) -> 5179.9 | I62: 5181.9 | J62: 5235.7 | K62: 5348.9 | L62: =SUM(L34,L60) -> 5161.5 | M62: 5242.5 | N62: =SUM(N34,N60) -> 5370.1
C63: =C62-C32 -> 0 | D63: =D62-D32 -> 0 | E63: =E62-E32 -> 0 | F63: =F62-F32 -> 0 | G63: =G62-G32 -> 0 | H63: =H62-H32 -> 0 | I63: 0 | J63: =J62-J32 -> 0 | K63: =K62-K32 -> 0 | L63: =L62-L32 -> 0 | M63: =M62-M32 -> 0 | N63: =N62-N32 -> 0

Sheet CF
A1: RACHUNEK PRZEPŁYWÓW PIENIĘŻNYCH ASSECO POLAND S.A. | B1: STATEMENT OF CASH FLOWS OF ASSECO POLAND S.A. | C1: Q1 2018 | D1: Q2 2018 | E1: Q3 2018 | F1: Q4 2018 | G1: Q1 2019 | H1: Q2 2019 | I1: Q3 2019 | J1: Q4 2019 | K1: Q1 2020 | L1: Q2 2020 | M1: Q3 2020 | N1: Q4 2020
C2: mln PLN | D2: mln PLN | E2: mln PLN | F2: mln PLN | G2: mln PLN | H2: mln PLN | I2: mln PLN | J2: mln PLN | K2: mln PLN | L2: mln PLN | M2: mln PLN | N2: mln PLN
A4: Przepływy środków pieniężnych z działalności operacyjnej | B4: Cash flows – operating activities
A5: Zysk brutto | B5: Pre-tax profit | C5: 58.4 | D5: 50.4 | E5: 50.9 | F5: 51 | G5: 109.2 | H5: 53.8 | I5: 34.1 | J5: 27.7 | K5: 134.5 | L5: 58.1 | M5: 51.8 | N5: 47.3
A6: Korekty o pozycje: | B6: Total adjustments: | C6: =SUM(C7:C16) -> -38.2 | D6: 44.8 | E6: 13.3 | F6: 62.6 | G6: =SUM(G7:G16) -> -71.7 | H6: =SUM(H7:H16) -> -43.7 | I6: 39.4 | J6: 61.5 | K6: =SUM(K7:K16) -> -97.9 | L6: =SUM(L7:L16) -> -17.7 | M6: =SUM(M7:M16) -> -13.1 | N6: =SUM(N7:N16) -> 47.1
A7: Amortyzacja | B7: Depreciation and amortization | C7: 13.5 | D7: 13.5 | E7: 15 | F7: 14.6 | G7: 16.8 | H7: 15.5 | I7: 15.6 | J7: 15.8 | K7: 15.9 | L7: 15.8 | M7: 16.9 | N7: 15
A8: Zmiany stanu kapitału pracującego | B8: Changes in working capital | C8: -37.8 | D8: 35.1 | E8: 1.3 | F8: 55.1 | G8: -7.5 | H8: -39 | I8: 31.6 | J8: 55.5 | K8: -12.6 | L8: -10.7 | M8: -20.3 | N8: 27.1
A9: Przychody/koszty z tytułu odsetek | B9: Interest income/expenses | C9: -0.4 | D9: -0.2 | E9: 0.6 | F9: -1 | G9: 0.1 | H9: -0.1 | I9: 0.4 | J9: -0.1 | K9: -0.2 | L9: 0.5 | M9: 0.3 | N9: -1.2
A10: Zyski/straty z tytułu różnic kursowych | B10: Gain / loss on foreign exchange differences | C10: 1 | D10: -2.5 | E10: 1.3 | F10: 0.2 | G10: -2.7 | H10: 2.2 | I10: -4.5 | J10: 2.8 | K10: -0.8 | L10: 0.4 | M10: 2 | N10: -1.2
A11: Przychody z tytułu dywidend | B11: Dividend income | C11: -6.4 | D11: -9.2 | E11: 0 | F11: -4.9 | G11: -79.3 | H11: -20.7 | I11: -8 | J11: -6.8 | K11: -104.8 | L11: -23.1 | M11: -8.3 | N11: 0
A12: Strata ze sprzedaży akcji/udziałów w jednostkach powiązanych | B12: Gain / loss on sales of share in subsidiaries | C12: 0 | D12: 0 | E12: 0 | F12: 0 | G12: 0 | H12: -0.7 | I12: 0.7 | J12: 0 | K12: 0 | L12: 0 | M12: 0 | N12: 0
A13: Pozostałe przychody/koszty finansowe | B13: Other financial (income)/ costs | C13: -7.7 | D13: 8.3 | E13: -4.7 | F13: -0.8 | G13: 0.8 | H13: -0.8 | I13: 3.8 | J13: -4.9 | K13: 5.1 | L13: -3.1 | M13: -2.3 | N13: 1.3
A14: Odpis aktualizujący wartości niematerialne | B14: Intangible assets impairment | C14: 0 | D14: 0 | E14: 0 | F14: 0 | G14: 0 | H14: 0 | I14: 0 | J14: 0 | K14: 0 | L14: 0 | M14: 0
A15: Zyski/straty z działalności inwestycyjnej | B15: Gain / loss on investing activities | C15: -0.4 | D15: -0.2 | E15: -0.5 | F15: -0.3 | G15: 0 | H15: 0 | I15: -0.2 | J15: -0.8 | K15: -0.5 | L15: 2.5 | M15: -2.9 | N15: 6.9
A16: Pozostałe korekty zysku brutto | B16: Other pre-tax profit adjustments | C16: 0 | D16: 0 | E16: 0.3 | F16: -0.3 | G16: 0.1 | H16: -0.1 | I16: 0 | J16: 0 | K16: 0 | L16: 0 | M16: 1.5 | N16: -0.8
A17: Środki pieniężne netto wygenerowane z dział. operacyjnej | B17: Cash generated from operating activities | C17: =SUM(C5:C6) -> 20.2 | D17: 95.2 | E17: 64.2 | F17: 113.6 | G17: =SUM(G5:G6) -> 37.5 | H17: =SUM(H5:H6) -> 10.1 | I17: 73.5 | J17: 89.2 | K17: =SUM(K5:K6) -> 36.6 | L17: =SUM(L5:L6) -> 40.4 | M17: =SUM(M5:M6) -> 38.7 | N17: =SUM(N5:N6) -> 94.4
A18: (Zapłacony podatek dochodowy) / Otrzymane zwroty podatku dochodowego | B18: (Corporate income tax paid) / Corporate income tax receipts | C18: -7.9 | D18: 25.1 | E18: -5.8 | F18: -5.5 | G18: -5.3 | H18: -16.7 | I18: -3.5 | J18: -4 | K18: -6.4 | L18: -10.9 | M18: -7.7 | N18: -7.8
A19: Środki pieniężne netto z działalności operacyjnej | B19: Net cash provided by (used in) operating activities | C19: =SUM(C17:C18) -> 12.3 | D19: 120.3 | E19: 58.4 | F19: 108.1 | G19: =SUM(G17:G18) -> 32.2 | H19: =SUM(H17:H18) -> -6.6 | I19: 70 | J19: 85.2 | K19: 30.2 | L19: 29.5 | M19: 31 | N19: 86.6
A21: Przepływy środków pieniężnych z działalności inwestycyjnej | B21: Cash flows – investing activities
A22: Wpływy ze sprzedaży AT i WN [1] | B22: Disposal of tangible FA and IA [1] | C22: 0.4 | D22: 0.3 | E22: 0.7 | F22: 1.1 | G22: 3 | H22: 1.1 | I22: 4.4 | J22: 1.1 | K22: 0.7 | L22: 0.3 | M22: 0.4 | N22: 0.6
A23: Nabycie AT i WN [1] | B23: Acquisition of tangible FA and IA [1] | C23: -6.3 | D23: -4.6 | E23: -10.6 | F23: -5.6 | G23: -11.1 | H23: -6.7 | I23: -15.4 | J23: -13 | K23: -11.1 | L23: -13.8 | M23: -18.6 | N23: -13.8
A24: Wydatki z tytułu prowadzonych projektów rozwojowych | B24: Expenditures for development projects in progress | C24: -2.4 | D24: -2.8 | E24: -3.3 | F24: -4.1 | G24: -8.1 | H24: -5.4 | I24: -6.1 | J24: -6 | K24: -4.9 | L24: -4.9 | M24: -3.4 | N24: -6.5
A25: Wpływy ze sprzedaży/liwidacji inwestycji w jednostkach powiązanych | B25: Disposal of shares in related companies | C25: 3.7 | D25: 4.6 | E25: 1.5 | F25: 2.3 | G25: 0.4 | H25: 4.3 | I25: 2.6 | J25: 3.5 | K25: 0.5 | L25: 24.5 | M25: 4.1 | N25: 0
A26: Nabycie akcji/udziałów w jednostkach powiązanych | B26: Acquisition of shares in related companies | C26: -15.3 | D26: -0.3 | E26: -2.4 | F26: -13.4 | G26: -0.3 | H26: -2.6 | I26: -0.7 | J26: 0 | K26: -7.7 | L26: -1.6 | M26: -1.1 | N26: 0.1
A27: Nabycie aktywów finansowych | B27: Acquisition of financial assets | C27: 0 | D27: 0 | E27: 0 | F27: 0 | G27: 0 | H27: 0 | I27: 0 | J27: 0 | K27: 0 | L27: 0 | M27: 0
A28: Wynik ze sprzedaży aktywów finansowych P&L [2] | B28: Disposal of financial assets P&L [2] | C28: 1.1 | D28: -1.1 | E28: 1.1 | F28: 0.3 | G28: 0 | H28: 0 | I28: 0 | J28: 0 | K28: 0 | L28: 0 | M28: 0 | N28: 0
A29: Pożyczki spłacone | B29: Loans collected | C29: 7.7 | D29: 1.8 | E29: 1.9 | F29: 4.4 | G29: 0.4 | H29: 0.5 | I29: 0.9 | J29: 4.7 | K29: 2 | L29: 0.4 | M29: 0.4 | N29: 0.4
A30: Pożyczki udzielone | B30: Loans granted | C30: -2.8 | D30: -0.9 | E30: -0.3 | F30: -0.4 | G30: -1.9 | H30: -0.7 | I30: -0.8 | J30: -0.4 | K30: -0.6 | L30: -0.4 | M30: -0.3 | N30: -0.2
A31: Otrzymane odsetki | B31: Interest received | C31: 1.8 | D31: 1.3 | E31: 1.1 | F31: 1.3 | G31: 1.2 | H31: 1.5 | I31: 0.2 | J31: 0.5 | K31: 0.8 | L31: 0.4 | M31: 0 | N31: 0.1
A32: Dywidendy otrzymane | B32: Dividends received | C32: 0.9 | D32: 9.3 | E32: 0.7 | F32: 5.4 | G32: 4.7 | H32: 88.8 | I32: 10.3 | J32: 8.4 | K32: 6.5 | L32: 122.1 | M32: 10.4 | N32: 2.6
A33: Pozostałe przepływy | B33: Other inflows / outflows | C33: 0 | D33: 1.1 | E33: -1.1 | F33: -0.2 | G33: -0.1 | H33: 0.1 | I33: 0 | J33: 0 | K33: 0 | L33: 0 | M33: 0 | N33: 0
A34: Środki pieniężne netto wykorzystane w działalności inwestycyjnej | B34: Net cash provided by (used in) investing activities | C34: =SUM(C22:C33) -> -11.2 | D34: =SUM(D22:D33) -> 8.7 | E34: =SUM(E22:E33) -> -10.7 | F34: -8.9 | G34: -11.8 | H34: 80.9 | I34: -4.6 | J34: -1.2 | K34: =SUM(K22:K33) -> -13.8 | L34: =SUM(L22:L33) -> 127 | M34: =SUM(M22:M33) -> -8.1 | N34: =SUM(N22:N33) -> -16.7
A36: Przepływy środków pieniężnych z działalności finansowej | B36: Cash flows – financing activities
A37: Wypłacona dywidenda | B37: Dividend paid out | C37: 0 | D37: -249.8 | E37: 0 | F37: 0 | G37: 0 | H37: -254.8 | I37: 0 | J37: 0 | K37: 0 | L37: -249.8 | M37: 0 | N37: 0
A38: Wpływy z tytułu zaciągnięcia kredytów | B38: Proceeds from bank loans | C38: 0 | D38: 0 | E38: 0 | F38: 0 | G38: 0 | H38: 0 | I38: 0 | J38: 0 | K38: 0 | L38: 0 | M38: 0 | N38: 0
A39: Wydatki z tytułu spłaty kredytów | B39: Repayment of bank loans and borrowings | C39: -3.7 | D39: -23.3 | E39: -3.8 | F39: -3.8 | G39: -28 | H39: -24.7 | I39: -0.6 | J39: -0.5 | K39: 0 | L39: 0 | M39: -0.3 | N39: 0
A40: Dotacje otrzymane do zakupu środków trwałych lub/i projektów rozwojowych | B40: Subsidies received | C40: 0 | D40: 0 | E40: 0 | F40: 1 | G40: 0 | H40: 2.3 | I40: 2.8 | J40: 0 | K40: 3.4 | L40: 2.2 | M40: 1.1 | N40: 4.4
A41: Dotacje zwrócone | B41: Subsidies returned | C41: 0 | D41: 0 | E41: 0 | F41: -9.5 | G41: 0 | H41: 0 | I41: 0 | J41: 0 | K41: 0 | L41: 0 | M41: 0 | N41: 0
A42: Spłata zobowiązań z tytułu leasingu finansowego | B42: Finance lease liabilities paid | C42: -5.3 | D42: -5.4 | E42: -5.5 | F42: -5.7 | G42: -7.8 | H42: -8.4 | I42: -6.9 | J42: -8.7 | K42: -8.2 | L42: -8.4 | M42: -8.3 | N42: -4.3
A43: Zapłacone odsetki | B43: Interest paid | C43: -1.7 | D43: -1.4 | E43: -1.4 | F43: -1.1 | G43: -1.6 | H43: -1.3 | I43: -1.1 | J43: -0.9 | K43: -0.8 | L43: -0.8 | M43: -0.7 | N43: 0.8
A44: Środki pieniężne netto z działalności finansowej | B44: Net cash provided by (used in) financing activities | C44: =SUM(C37:C43) -> -10.7 | D44: -279.9 | E44: -10.7 | F44: -19.1 | G44: -37.4 | H44: -286.9 | I44: -5.8 | J44: -10.1 | K44: =SUM(K37:K43) -> -5.6 | L44: =SUM(L37:L43) -> -256.8 | M44: =SUM(M37:M43) -> -8.2 | N44: =SUM(N37:N43) -> 0.9
A45: Zmiana netto stanu środków pieniężnych i ich ekwiwalentów | B45: Net change in cash and cash equivalents | C45: =C19+C34+C44 -> -9.6 | D45: =D19+D34+D44 -> -150.9 | E45: 37 | F45: 80.1 | G45: =G19+G34+G44 -> -17 | H45: =H19+H34+H44 -> -212.6 | I45: 59.6 | J45: 73.9 | K45: =K19+K34+K44 -> 10.8 | L45: =L19+L34+L44 -> -100.3 | M45: =M19+M34+M44 -> 14.7 | N45: =N19+N34+N44 -> 70.8
A46: Różnice kursowe netto | B46: Net foreign exchange differences | C46: 0 | D46: 0.3 | E46: -0.3 | F46: 0.1 | G46: 0.1 | H46: -0.1 | I46: 0.2 | J46: -0.1 | K46: 0.2 | L46: 0 | M46: -0.1 | N46: 0
A47: Środki pieniężne i ich ekwiwalenty na początek danego okresu | B47: Cash and cash equivalents at the beginning of the period | C47: 308 | D47: 298.4 | E47: 147.8 | F47: 184.5 | G47: 264.7 | H47: 247.8 | I47: 35.1 | J47: 94.9 | K47: 168.7 | L47: 179.7 | M47: 79.4 | N47: 94
A48: Środki pieniężne i ich ekwiwalenty na koniec danego okresu | B48: Cash and cash equivalents at the end of the period | C48: 298.4 | D48: 147.8 | E48: 184.5 | F48: 264.7 | G48: 247.8 | H48: 35.1 | I48: 94.9 | J48: 168.7 | K48: 179.7 | L48: 79.4 | M48: 94 | N48: 164.8
C49: =C47+C46+C45-C48 -> 0 | D49: =D47+D46+D45-D48 -> 0 | E49: =E47+E46+E45-E48 -> 0 | F49: 0 | G49: =G47+G46+G45-G48 -> 0 | H49: =H47+H46+H45-H48 -> 0 | I49: =I47+I46+I45-I48 -> 0 | J49: 0 | K49: =K47+K46+K45-K48 -> 0 | L49: =L47+L46+L45-L48 -> 0 | M49: =M47+M46+M45-M48 -> 0 | N49: =N47+N46+N45-N48 -> 0
A52: Objaśnienia: | B52: Legend:
A53: [1] AT i WN - aktywów trwałych i wartości niematerialnych | B53: [1] FA and IA - fixed assets and intangible assets
A54: [2] Wpływy / wydatki ze sprzedaży aktywów finansowych wycenianych do wartości godziwej przez rachunek zysków i strat | B54: [2] Disposal / Purchase of financial assets carried at fair value through profit or loss

Sheet CF (LTM)
A1: RACHUNEK PRZEPŁYWÓW PIENIĘŻNYCH ASSECO POLAND S.A. | B1: STATEMENT OF CASH FLOWS OF ASSECO POLAND S.A. | C1: Last 12 months
C2: mln PLN
A4: Przepływy środków pieniężnych z działalności operacyjnej | B4: Cash flows – operating activities
A5: Zysk brutto | B5: Pre-tax profit | C5: 291.7
A6: Korekty o pozycje: | B6: Total adjustments: | C6: =SUM(C7:C16) -> -81.6
A7: Amortyzacja | B7: Depreciation and amortization | C7: 63.6
A8: Zmiany stanu kapitału pracującego | B8: Changes in working capital | C8: -16.5
A9: Przychody/koszty z tytułu odsetek | B9: Interest income/expenses | C9: -0.6
A10: Zyski/straty z tytułu różnic kursowych | B10: Gain / loss on foreign exchange differences | C10: 0.4
A11: Przychody z tytułu dywidend | B11: Dividend income | C11: -136.2
A12: Strata ze sprzedaży akcji/udziałów w jednostkach powiązanych | B12: Gain / loss on sales of share in subsidiaries | C12: 0
A13: Pozostałe przychody/koszty finansowe | B13: Other financial (income)/ costs | C13: 1
A14: Odpis aktualizujący wartości niematerialne | B14: Intangible assets impairment | C14: 0
A15: Zyski/straty z działalności inwestycyjnej | B15: Gain / loss on investing activities | C15: 6
A16: Pozostałe korekty zysku brutto | B16: Other pre-tax profit adjustments | C16: 0.7
A17: Środki pieniężne netto wygenerowane z dział. operacyjnej | B17: Cash generated from operating activities | C17: =SUM(C5:C6) -> 210.1
A18: (Zapłacony podatek dochodowy) / Otrzymane zwroty podatku dochodowego | B18: (Corporate income tax paid) / Corporate income tax receipts | C18: -32.8
A19: Środki pieniężne netto z działalności operacyjnej | B19: Net cash provided by (used in) operating activities | C19: =SUM(C17:C18) -> 177.3
A21: Przepływy środków pieniężnych z działalności inwestycyjnej | B21: Cash flows – investing activities
A22: Wpływy ze sprzedaży AT i WN [1] | B22: Disposal of tangible FA and IA [1] | C22: 2
A23: Nabycie AT i WN [1] | B23: Acquisition of tangible FA and IA [1] | C23: -57.3
A24: Wydatki z tytułu prowadzonych projektów rozwojowych | B24: Expenditures for development projects in progress | C24: -19.7
A25: Wpływy ze sprzedaży/liwidacji inwestycji w jednostkach powiązanych | B25: Disposal of shares in related companies | C25: 29.1
A26: Nabycie akcji/udziałów w jednostkach powiązanych | B26: Acquisition of shares in related companies | C26: -10.3
A27: Nabycie aktywów finansowych | B27: Acquisition of financial assets
A28: Wpływy ze sprzedaży aktywów finansowych P&L [2] | B28: Disposal of financial assets P&L [2]
A29: Pożyczki spłacone | B29: Loans collected | C29: 3.2
A30: Pożyczki udzielone | B30: Loans granted | C30: -1.5
A31: Otrzymane odsetki | B31: Interest received | C31: 1.3
A32: Dywidendy otrzymane | B32: Dividends received | C32: 141.6
A33: Pozostałe przepływy | B33: Other inflows / outflows | C33: 0
A34: Środki pieniężne netto wykorzystane w działalności inwestycyjnej | B34: Net cash provided by (used in) investing activities | C34: =SUM(C22:C33) -> 88.4
A36: Przepływy środków pieniężnych z działalności finansowej | B36: Cash flows – financing activities
A37: Wypłacona dywidenda | B37: Dividend paid out | C37: -249.8
A38: Wpływy z tytułu zaciągnięcia kredytów | B38: Proceeds from bank loans | C38: 0
A39: Wydatki z tytułu spłaty kredytów | B39: Repayment of bank loans and borrowings | C39: -0.3
A40: Dotacje otrzymane do zakupu środków trwałych lub/i projektów rozwojowych | B40: Subsidies received | C40: 11.1
A41: Dotacje zwrócone | B41: Subsidies returned | C41: 0
A42: Spłata zobowiązań z tytułu leasingu finansowego | B42: Finance lease liabilities paid | C42: -29.2
A43: Zapłacone odsetki | B43: Interest paid | C43: -1.5
A44: Środki pieniężne netto z działalności finansowej | B44: Net cash provided by (used in) financing activities | C44: =SUM(C37:C43) -> -269.7
A45: Zmiana netto stanu środków pieniężnych i ich ekwiwalentów | B45: Net change in cash and cash equivalents | C45: =C19+C34+C44 -> -4
A46: Różnice kursowe netto | B46: Net foreign exchange differences | C46: 0.1
A47: Środki pieniężne i ich ekwiwalenty na dzień 1 stycznia | B47: Cash and cash equivalents at 1 January | C47: 168.7
A48: Środki pieniężne i ich ekwiwalenty na dzień 31 grudnia | B48: Cash and cash equivalents at 31 December | C48: 164.8
C49: =C47+C46+C45-C48 -> 0
A52: Objaśnienia: | B52: Legend:
A53: [1] AT i WN - aktywów trwałych i wartości niematerialnych | B53: [1] FA and IA - fixed assets and intangible assets
A54: [2] Wpływy / wydatki ze sprzedaży aktywów finansowych wycenianych do wartości godziwej przez rachunek zysków i strat | B54: [2] Disposal / Purchase of financial assets carried at fair value through profit or loss
